Cogmind - Beta 16.1 @@@ ROGUE MODE // 2026.02.22 @ 16:51:12 Player: Zish Result: Self-destructed Performance ------------- Evolutions (0) 0 Regions Visited (4) 800 Robots Destroyed (36) 180 Value Destroyed (608) 608 Prototype IDs (25) 500 Alien Tech Used (0) 0 Bonus (389) 389 TOTAL SCORE: 2477 Bonus ------- Follower Combat Kills 89 Aligned with FarCom 300 Cogmind --------- Core Integrity 92/250 Matter 300/300 Energy 160/160 System Corruption 0% Temperature Cool (0) Movement Treading (400) Ox3 Location -9/Mines Parts ------- > --- POWER (1) -------- Light Nuclear Core > --- PROPULSION (2) --- Light Treads > --- UTILITY (2) ------ Large Storage Unit High-capacity Storage Unit > --- WEAPON (2) ------- Assault Rifle Heavy Assault Rifle > --- INVENTORY (20) --- Ion Engine Light Nuclear Core Light Treads Authchip [R/Combat] Authchip [Device] Tractor Beam Assault Rifle Grenade Launcher Grenade Launcher Field Lobotomy Kit (4) Peak State ------------ > --- POWER ------------ Ion Engine > --- PROPULSION ------- Light Treads Light Treads > --- UTILITY ---------- Large Storage Unit High-capacity Storage Unit > --- WEAPON ----------- Assault Rifle Field Lobotomy Kit > --- INVENTORY -------- Ion Engine Light Nuclear Core Light Nuclear Core Light Treads Authchip [R/Combat] Authchip [Device] Tractor Beam Assault Rifle Grenade Launcher Grenade Launcher [Rating: 18] Favorites ----------- Power Ion Engine Engine Ion Engine Power Core Light Nuclear Core Propulsion Light Treads Treads Light Treads Utility Large Storage Unit Storage Large Storage Unit Protection Propulsion Shielding Weapon Assault Rifle Ballistic Gun Assault Rifle Special Weapon Field Lobotomy Kit Build | -11 -10 -10 -10 -9 ------- Run | Yrd Mat Min Exi Min Slots Evolved . | . . . . . Power . | . . . . . Propulsion . | . . . . . Utility . | . . . . . Weapon . | . . . . . Parts Attached 14 | 7 3 . 1 3 Power 2 | 1 . . . 1 Engine 1 | 1 . . . . Core 1 | . . . . 1 Reactor . | . . . . . Propulsion 2 | 2 . . . . Treads 2 | 2 . . . . Leg . | . . . . . Wheel . | . . . . . Hover . | . . . . . Flight . | . . . . . Utility 5 | 1 3 . 1 . Device . | . . . . . Storage 4 | 1 2 . 1 . Processor . | . . . . . Hackware . | . . . . . Protection 1 | . 1 . . . Artifact . | . . . . . Weapon 5 | 3 . . . 2 Energy Gun . | . . . . . Energy Cannon . | . . . . . Ballistic Gun 4 | 3 . . . 1 Ballistic Cannon . | . . . . . Launcher . | . . . . . Special Weapon 1 | . . . . 1 Impact Weapon . | . . . . . Slashing Weapon . | . . . . . Piercing Weapon . | . . . . . Special Melee Weapon . | . . . . . Unidentified Prototypes . | . . . . . Parts Lost 3 | . . 1 . 2 Power 1 | . . . . 1 Propulsion 1 | . . . . 1 Utility 1 | . . 1 . . Weapon . | . . . . . Highest Loss Streak 1 | . . 1 . 1 To Critical Strikes . | . . . . . Average Backups 8 | 1 6 8 9 10 Power 2 | . 1 2 3 2 Propulsion . | . . 1 1 1 Utility 2 | . 2 3 3 3 Weapon 1 | . 1 2 2 2 Tool/Special . | . . . . . Unused Backups 9 | . 1 . . 8 Power 2 | . . . . 2 Propulsion 1 | . . . . 1 Utility 4 | . 1 . . 3 Weapon 2 | . . . . 2 Tool/Special . | . . . . . Average Slot Usage (%) 97 | . 97 88 98 99 Engine 13 | . 14 14 14 13 Treads 27 | . 28 28 28 27 Storage 22 | . 14 14 26 28 Protection 3 | . 11 3 . . Ballistic Gun 27 | . 28 28 28 27 Peak Build Rating 18 | 6 8 8 9 18 Average Rating 8 | 4 7 7 8 10 On Entrance 6 | . 6 8 7 9 Avg Prop Armor Cover (%) . | . . . . . Naked Turns . | . . . . . Heaviest Build 75 | 14 30 30 69 75 Greatest Support 40 | 40 40 40 40 40 Greatest Overweight (x) 4 | . 4 . 1 1 Average Overweight (x) . | . . . . 1 Largest Inventory Capacity 20 | 8 15 15 20 20 Average Capacity 16 | 6 10 15 19 20 Most Carried 11 | 2 8 9 10 11 Average Carried 8 | 1 6 8 9 10 Final Capacity 20 | 8 15 15 20 20 Final Carried 10 | 2 8 9 10 10 Class Distribution -------------------- 77% | Mutant 22% | Commander-Mutant Dominant Class ---------------- Mutant | -10/Materials Mutant | -10/Mines Mutant | -10/Exiles Commander-Mutant | -9/Mines Resources | -11 -10 -10 -10 -9 ----------- Run | Yrd Mat Min Exi Min Matter Collected 950 | 276 468 67 . 139 Remotely . | . . . . . Salvage Created 1365 | 61 992 202 . 110 Parts 75 | 2 53 14 . 6 Haulers Intercepted 2 | . 2 . . . Recyclers Shooed 4 | . 3 . . 1 Parts Field Recycled . | . . . . . Retrieved Matter . | . . . . . Parts Self-Destructed . | . . . . . Prevented . | . . . . . Parts Restored . | . . . . . Kills | -11 -10 -10 -10 -9 ------- Run | Yrd Mat Min Exi Min Combat Hostiles Destroyed 23 | . 13 6 . 4 Guns 23 | . 13 6 . 4 Classes Destroyed 9 | 1 6 . . 2 Worker 2 | . 2 . . . Builder 2 | . 2 . . . Tunneler 1 | . . . . 1 Hauler 2 | . 2 . . . Recycler 6 | 1 5 . . . Operator 1 | . 1 . . . Swarmer 11 | . 6 3 . 2 Grunt 11 | . 7 3 . 1 Assembled 1 | . . . . 1 Best Kill Streak 6 | 1 6 3 . 2 Combat Bots Only 4 | . 4 3 . 2 Max Kills in Single Turn 2 | 1 2 1 . 1 Gunslinging 1 | . 1 . . . Exploded . | . . . . . Melee . | . . . . . Uniques/NPCs Destroyed . | . . . . . Combat | -11 -10 -10 -10 -9 -------- Run | Yrd Mat Min Exi Min Hostile Shots Fired 92 | . 55 23 . 14 Missed 29 | . 20 7 . 2 Hits 63 | . 35 16 . 12 Projectile 63 | . 35 16 . 12 Critical Strikes 3 | . 2 . . 1 Damage Taken 738 | . 378 169 . 191 Core 158 | . 116 28 . 14 Absorbed by Shields . | . . . . . Redirected to Shielding 51 | . 25 26 . . Core Remaining (%) 100 | 100 . . . . Volleys Fired 103 | 1 73 12 . 17 Largest 2 | 2 2 2 . 2 Hottest 43 | 40 40 40 . 43 Shots Fired 206 | 2 146 24 . 34 Gun 205 | 2 146 24 . 33 Cannon . | . . . . . Launcher . | . . . . . Special 1 | . . . . 1 Kinetic 205 | 2 146 24 . 33 Thermal . | . . . . . Explosive . | . . . . . Electromagnetic . | . . . . . Robot Hit Streak 12 | 1 12 4 . 4 Robot Miss Streak 7 | 1 7 3 . 5 Penetration Max . | . . . . . Secondary Targets 5 | . 3 1 . 1 Max Gunslinging Chain 1 | . 1 1 . 1 Shots Hit Robots 119 | 1 91 11 . 16 Core Hits 57 | 1 38 9 . 9 Critical Kills 1 | . 1 . . . Critical Parts Destroyed . | . . . . . Critical Strikes 1 | . 1 . . . Destroy 1 | . 1 . . . Melee Attacks . | . . . . . Impact . | . . . . . Slashing . | . . . . . Piercing . | . . . . . Sneak Attacks . | . . . . . Combat Hostiles . | . . . . . Follow-up Attacks . | . . . . . Damage Inflicted 1568 | 15 1178 140 . 235 Guns 1568 | 15 1178 140 . 235 Cannons . | . . . . . Explosions . | . . . . . Melee . | . . . . . Ramming . | . . . . . Kinetic 1568 | 15 1178 140 . 235 Thermal . | . . . . . Explosive . | . . . . . Electromagnetic . | . . . . . Impact . | . . . . . Slashing . | . . . . . Piercing . | . . . . . Highest Corruption . | . . . . . Average Corruption . | . . . . . Corruption Purged . | . . . . . Corruption Blocked . | . . . . . Overload Shots . | . . . . . Overflow Damage . | . . . . . Projectiles . | . . . . . Explosions . | . . . . . Melee . | . . . . . Knockbacks . | . . . . . Impact . | . . . . . Kinetic . | . . . . . Secondary . | . . . . . Self-Inflicted Damage . | . . . . . Shots . | . . . . . Rammed . | . . . . . Targets Rammed . | . . . . . Kicked . | . . . . . Crushed . | . . . . . Highest Temperature 20 | . 20 8 . 2 Average Temperature 4 | . 5 2 . 2 Received Heat Transfer 288 | . 183 54 . 51 Siege Activations . | . . . . . Martial Activations . | . . . . . Shielding Activations . | . . . . . Robots Disrupted . | . . . . . Combat Hostiles . | . . . . . Robots Corrupted . | . . . . . Combat Hostiles . | . . . . . Parts Fried . | . . . . . Impact Corruptions . | . . . . . Robots Melted . | . . . . . Combat Hostiles . | . . . . . Parts Melted . | . . . . . Heat Transferred . | . . . . . Parts Sabotaged . | . . . . . Parts Stolen . | . . . . . Parts Stripped . | . . . . . Power Chain Reactions . | . . . . . Alert | -11 -10 -10 -10 -9 ------- Run | Yrd Mat Min Exi Min Maximum Alert Level . | . . . . . Low Security (%) 100 | 100 100 100 . 100 Level 1 . | . . . . . Level 2 . | . . . . . Level 3 . | . . . . . Level 4 . | . . . . . Level 5 . | . . . . . High Security . | . . . . . Max Security . | . . . . . Peak Influence 178 | 5 178 110 . 109 Initial 20 | . . 20 . . Average 39 | 1 78 53 . 11 Influence Increases 818 | 5 440 140 . 233 Destroy 0b10 Robot/C 540 | . 260 120 . 160 Destroy 0b10 Robot/NC 70 | 5 60 . . 5 Destroy Leader 84 | . 54 20 . 10 Allied During Kill 37 | . . . . 37 Successful Hack 24 | . 18 . . 6 Disable Machine 15 | . . . . 15 Destroy Structure 3 | . 3 . . . Lose Combat Pursuer 45 | . 45 . . . Influence Decreases 755 | 5 387 193 . 170 Entered New Map 33 | . . 33 . . Time Decay 672 | 5 387 150 . 130 Lost Part 30 | . . 10 . 20 Lost Ally 20 | . . . . 20 Squads Dispatched 2 | . 2 . . . Investigation 1 | . 1 . . . Extermination . | . . . . . Reinforcement 1 | . 1 . . . Assault . | . . . . . Garrison . | . . . . . Intercept . | . . . . . Searches Triggered . | . . . . . Construction Impeded . | . . . . . Haulers Reinforced . | . . . . . Active Scanning Responses . | . . . . . Cargo Convoy Interrupts . | . . . . . Stealth | -11 -10 -10 -10 -9 --------- Run | Yrd Mat Min Exi Min Distress Signals 6 | . 4 . . 2 Communications Jammed . | . . . . . Distress Signals . | . . . . . Times Spotted 43 | . 26 6 . 11 Peak Tracking Total 4 | . 4 3 . 4 Tactical Retreats 2 | . 2 . . . Traps | -11 -10 -10 -10 -9 ------- Run | Yrd Mat Min Exi Min Traps Triggered . | . . . . . Indirectly . | . . . . . Trap Hack Attempts . | . . . . . Triggered . | . . . . . Disarmed . | . . . . . Reprogrammed . | . . . . . Reused . | . . . . . Traps Extracted . | . . . . . Installed . | . . . . . Triggered . | . . . . . Machines | -11 -10 -10 -10 -9 ---------- Run | Yrd Mat Min Exi Min Machines Disabled 1 | . . . . 1 Max in Single Turn . | . . . . . Machines Repaired . | . . . . . Machines Dismantled . | . . . . . Machines Sabotaged . | . . . . . Overloaded Fab Kills . | . . . . . Hacking | -11 -10 -10 -10 -9 --------- Run | Yrd Mat Min Exi Min Machines Accessed 9 | . 7 . 1 1 Terminals 6 | . 5 . . 1 Fabricators . | . . . . . Repair Stations . | . . . . . Recycling Units 2 | . 2 . . . Scanalyzers . | . . . . . Garrison Access . | . . . . . Total Hacks 18 | . 14 . 1 3 Successful 10 | . 8 . 1 1 Failed 8 | . 6 . . 2 Catastrophic 3 | . 2 . . 1 Database Lockouts . | . . . . . Manual 9 | . 5 . 1 3 Terminals 12 | . 9 . . 3 Fabricators . | . . . . . Repair Stations . | . . . . . Recycling Units 5 | . 5 . . . Scanalyzers . | . . . . . Garrison Access . | . . . . . Terminal Hacks 3 | . 2 . 1 . Prototype ID Bank 1 | . 1 . . . Zone Layout 1 | . 1 . . . Proto ID Catalog 1 | . . . 1 . Fabricator Hacks . | . . . . . Repair Station Hacks . | . . . . . Recycling Unit Hacks 2 | . 2 . . . Retrieve Components 2 | . 2 . . . Scanalyzer . | . . . . . Garrison Access Hacks . | . . . . . Unauthorized Hacks 5 | . 4 . . 1 Terminals 5 | . 4 . . 1 Assimilate 1 | . 1 . . . Botnet 2 | . 2 . . . Operators 2 | . 1 . . 1 Fabricators . | . . . . . Repair Stations . | . . . . . Recycling Units . | . . . . . Scanalyzers . | . . . . . Garrison Access . | . . . . . Data Cores Recovered . | . . . . . Used . | . . . . . Hacking Detections 6 | . 5 . . 1 Full Trace Events 1 | . 1 . . . Feedback Events . | . . . . . Feedback Blocked . | . . . . . Robot Schematics Acquired . | . . . . . Robots Built . | . . . . . Authchips . | . . . . . Time . | . . . . . Total Robot Build Rating . | . . . . . Part Schematics Acquired . | . . . . . Parts Built . | . . . . . Authchips . | . . . . . Time . | . . . . . Total Part Build Rating . | . . . . . Part Studies Acquired . | . . . . . Parts Repaired . | . . . . . Time . | . . . . . Parts Recycled . | . . . . . Recycled Matter . | . . . . . Retrieved Matter . | . . . . . Retrieved Components 14 | . 14 . . . Parts Scanalyzed . | . . . . . Part Schematics Acquired . | . . . . . Parts Damaged . | . . . . . Bothacking | -11 -10 -10 -10 -9 ------------ Run | Yrd Mat Min Exi Min Used RIF Installer . | . . . . . Robots Hacked . | . . . . . Non-combat . | . . . . . Combat . | . . . . . Robot Hacks Applied . | . . . . . Relay Couplers Released . | . . . . . Fabnet Peak Effective % . | . . . . . Robots Rewired . | . . . . . Allies Hacked . | . . . . . Hacks Repelled . | . . . . . Allies | -11 -10 -10 -10 -9 -------- Run | Yrd Mat Min Exi Min Total Allies 5 | . . . . 5 Largest Group 5 | . . . . 5 Highest-Rated Group 89 | . . . . 89 Highest-Rated Ally 31 | . . . . 31 Total Orders . | . . . . . Ally Attacks 40 | . . . . 40 Total Damage 452 | . . . . 452 Kills 5 | . . . . 5 Allies Corrupted . | . . . . . Allies Melted . | . . . . . Field Lobotomies 1 | . . . . 1 Intel | -11 -10 -10 -10 -9 ------- Run | Yrd Mat Min Exi Min Active Infowar (turns) . | . . . . . Robot Analysis Total . | . . . . . Derelict Logs Recovered 3 | . . 1 . 2 Drone Launches . | . . . . . Drone Recoveries . | . . . . . Exploration | -11 -10 -10 -10 -9 ------------- Run | Yrd Mat Min Exi Min Turns Passed 4631 | 85 1243 349 1132 1822 Spaces Moved 2085 | 47 631 196 498 713 Core 6 | 4 2 . . . Treads 2079 | 43 629 196 498 713 Legs . | . . . . . Wheels . | . . . . . Hover . | . . . . . Flight . | . . . . . Fastest Speed 50 | 50 160 160 160 240 Average Speed 203 | 150 160 160 227 240 Slowest Speed 250 | 160 250 160 240 240 Overloaded Moves . | . . . . . Propulsion Burnouts . | . . . . . Robots Hopped . | . . . . . Potential Cave-ins . | . . . . . Cave-ins Triggered . | . . . . . Exploration Rate (%) 60 | 4 91 30 90 89 Regions Visited 4 Branch Regions 3 Pre-discovered Areas 1 | . . 1 . . Known Exits Taken . | . . . . . Unknown Exits Taken 4 | 1 1 1 1 . Scrap Searched 3 | . . . . 3 Spaces Dug . | . . . . . Terrain Destroyed . | . . . . . Melee . | . . . . . Projectile . | . . . . . AOE . | . . . . . Terrain Rammed . | . . . . . Walls Destroyed . | . . . . . Machines Disabled . | . . . . . Actions | -11 -10 -10 -10 -9 --------- Run | Yrd Mat Min Exi Min Total 2272 | 57 719 208 499 789 Wait 53 | . . . . 53 Move 2081 | 46 630 195 497 713 Hop . | . . . . . Pick Up 13 | 2 9 1 1 . Fast Attach 7 | 6 . . 1 . Attach 5 | 1 1 . . 3 Detach 3 | 1 . . . 2 Swap 3 | . 2 . . 1 Drop 4 | . 4 . . . Fire 103 | 1 73 12 . 17 Melee . | . . . . . Ram . | . . . . . Kick . | . . . . . Crush . | . . . . . Escape Stasis . | . . . . . Rewire . | . . . . . Trap . | . . . . . Miscellaneous . | . . . . . Route ------- -11/Scrapyard -10/Materials (discovered 4 exits: [*Mat x3] / [*Min]) -10/Mines (discovered 2 exits: *Exi / [*Sub]) -10/Exiles -9/Mines (discovered 2 exits: [*Mat x2]) History --------- Turn | Location | Event 2 | -11/Scrapyard | Met Revision 17 59 | -11/Scrapyard | Discovered new exit (range 15) 86 | -11/Scrapyard | Entered Materials 311 | -10/Materials | Build established: Mutant 322 | -10/Materials | Discovered new exit (range 16) 493 | -10/Materials | Discovered new exit (range 13) 803 | -10/Materials | Discovered new exit (range 12) 1023 | -10/Materials | Discovered new exit (range 14) 1329 | -10/Materials | Entered Mines 1341 | -10/Mines | Core integrity fell below 50% 1436 | -10/Mines | Discovered new exit (range 8) 1565 | -10/Mines | Learned location of Storage (-9) 1670 | -10/Mines | Deemed a non-threat by the Exiles lab entrance 1672 | -10/Mines | Discovered new exit (range 5) 1678 | -10/Mines | Entered Exiles 1718 | -10/Exiles | Met 8R-AWN 1741 | -10/Exiles | Met EX-HEX 1849 | -10/Exiles | Met EX-DEC 1900 | -10/Exiles | Visited The Gauntlet 2269 | -10/Exiles | Discovered new exit (range 11) 2454 | -10/Exiles | Met EX-BIN 2480 | -10/Exiles | Aligned with FarCom system 2482 | -10/Exiles | Given EX-Vault access code 2559 | -10/Exiles | Opened EX-Vault 2583 | -10/Exiles | Found Field Lobotomy Kit 2627 | -10/Exiles | Warned to stay clear of 0b10 Research branches 2810 | -10/Exiles | Left Exiles lab with Field Lobotomy Kit 2810 | -10/Exiles | Entered Mines 2842 | -9/Mines | Discovered new exit (range 6) 2920 | -9/Mines | Assimilated L-31 Rogue with FLK Orb 2989 | -9/Mines | Learned Materials trap positions 3123 | -9/Mines | Found a hidden stash of uninstalled traps 3515 | -9/Mines | Assisted by bots powering up and referring to "LRC-V3" 3661 | -9/Mines | Received a Mining Laser from a helpful Derelict 3802 | -9/Mines | Build established: Commander-Mutant 3968 | -9/Mines | Learned Materials stockpile data 4472 | -9/Mines | Discovered new exit (range 10) 4545 | -9/Mines | Excavation squad dispatched 4545 | -9/Mines | A large section of the Mines collapsed 4579 | -9/Mines | Lost 3 allies 4632 | -9/Mines | Self-destructed Last Messages --------------- 04545_ Lgt. Assault Rifle crushed. 04545_ Rogue 2a crushed by falling debris. 04545_ Mercenary 2a crushed by falling debris. 04545_ Mercenary 2a destroyed. 04545_ Trooper 2b crushed by falling debris. 04545_ Trooper 2b destroyed. 04545_ 19 Matter crushed. 04545_ ALERT: Suspicious cave-in, suspected derelict activity in mines. Dispatching escorted excavation squad. 04547_ Destroyed Asb. Hover Unit. 04548_ Rogue 2a destroyed. 04549_ Acquired 1 matter. 04554_ Ion Engine destroyed. 04557_ as-91260 destroyed. 04561_ Acquired 16 matter. 04627_ Lgt. Treads destroyed. 04629_ G-34 Mercenary destroyed. 04630_ Acquired 22 matter. 04630_ T-07 Excavator sends out distress signal. Map ----- +----------------------------------------------------+ | ?## ## ## ## #?? | | ??## #### #### ##?? | | ???## ##??### #??#####??? | | ????###??????## ##????????? | | ##???????###### #????????? | | ##??????# #????????? | | ##?????# #### ### ##????????? | | #????## #### #### ##?????????? | | #???## #?####??????????? | | #??## ##### #???????????????? | | ##??# ##?# #???????????????? | | ##???#% ### #???????????????? | | ####### %"" ## #???????????????? | | # """ ## #???????????????? | | """ ### ##??????????????? | | ## ##### ##?????????????? | | ## #??# ##????????????? | | ### #?## ##???????????? | | #?# ## #???????????? | | #?## #???????????? | | ##??##### ##???????????? | | ????????## #*%##????????????? | | ?????????## ##[=#??????####???? | | ??????????# ## [#???#####;##??? | | ??????????# ##=%#####=# ###??? | | ??????????# ##* t=[%=@g### #??? | | ??????????## ## g####=### ###??? | | ???????????# ### #??## ###????? | | ??????????? #### ###?####??????? | | ?????????? ### #???###?????? | | ????????? #??# #### #????? | | ????????? #???# """ #?????? | | ????????###????# """ #?????? | | ???????????????# """ ####g##?????? | | ???????????????# #???????????? | | ???????????????# < #???????????? | | ???????????????# #???????????? | | ???????????????########???????????? | | ??????????????????????????????????? | | ??????????????????????????????????? | | ??????????????????????????????????? | | | | | | | | | | | | | | | | | | | +----------------------------------------------------+ Best States ------------- Heat Dissipation 25 Energy Generation 14 Energy Capacity 250 Matter Stores 300 Matter Capacity 300 Sight Range 16 Terrain Scan Density 10 Propulsion Shielding 33 Evasion (%) 40 Recoil Reduction 2 Authchip Count 3 Item Schematics ----------------- None Robot Schematics ------------------ None Fabricated ------------ Nothing Repaired ---------- Nothing Studied --------- None Alien Tech Used ----------------- None Achievements -------------- None Challenges ------------ None Game ------ Seed SpacefoldGuidedPendant Manual? 0 Play Time 00:22:27 Cumulative 27.1 hours Start 2026.02.22 @ 16:31:57 End 2026.02.22 @ 16:51:12 Sessions 1 Manual Loads 0 Difficulty Rogue Special Mode None Game No. 73 Rogue 73 Adventurer 0 Explorer 0 Win Type - Total 0 Types 0/0/0/0/0/0/0/0/0/0 Lore% 17 Gallery% 25 Achievement% 21 Wizard Run 0 Options --------- Layout 1 ASCII 0 Keyboard 1 Movement Vi Keybinds 0 Fullscreen 1 Font 24/Smallcaps Map View 50x35 Zoom Use 0% Tactical HUD 1 Map Filters NONE Filters NONE Steam 1 RUN: e3a42877-b0da-4025-b9d4-e08ad00c71c3